bitfinex-derivatives/quotes_ETHF0:USTF0_20240901
["timestamp","ask_amount","ask_price","bid_price","bid_amount"]
[1725219270766,0.5029,2496.7,2496.2,5.9778]
[1725219271065,0.40057,2496.6,2496.2,5.9778]
[1725219271265,0.90345,2496.7,2496.2,5.9778]
[1725219271460,0.5029,2496.7,2496.2,6.37842]
[1725219271664,0.90345,2496.7,2496.2,5.9778]
[1725219272061,0.5029,2496.7,2496.2,5.9778]
[1725219272251,0.5029,2496.7,2496.2,6.37842]
[1725219272763,0.5029,2496.7,2496.2,5.9778]
[1725219272968,0.5029,2496.7,2496.4,2.77]
[1725219273163,0.5029,2496.7,2496.5,0.5056]
[1725219273363,0.5029,2496.7,2496.5,1.0185]
[1725219273760,0.5029,2496.7,2496.5,0.5056]
[1725219274362,0.00600853,2496.9,2496.5,0.5056]
[1725219274563,0.00600853,2496.9,2496.6,0.5361]
[1725219274760,0.40053,2496.8,2496.6,0.5361]
[1725219275855,0.40652853,2496.9,2496.6,0.5361]
[1725219276055,0.40053,2496.8,2496.6,0.5361]
[1725219276464,0.40053,2496.8,2496.5,0.5056]
[1725219277471,0.40652853,2496.9,2496.5,0.5056]
[1725219277861,0.40053,2496.8,2496.5,0.5056]
[1725219279876,0.40652853,2496.9,2496.5,3.7134]
[1725219280178,0.40652853,2496.9,2496.7,2.77]
[1725219280179,0.00600853,2496.9,2496.7,2.77]
[1725219280371,0.00600853,2496.9,2496.8,0.5109]
[1725219281865,0.00600853,2496.9,2496.8,3.7187]
[1725219282068,4.20877,2497.7,2496.8,8.12403]
[1725219282367,0.40044,2497.4,2497.0,2.77]
[1725219282567,4.16985642,2497.5,2497.1,0.4968]
[1725219282568,0.40045,2497.3,2497.1,0.4968]
[1725219282767,0.90755,2497.3,2497.1,0.4968]
[1725219282967,0.4005,2497.0,2496.8,5.9778]
[1725219283176,0.4005,2497.0,2496.8,6.4746]
[1725219284771,0.5071,2496.9,2496.8,6.4746]
[1725219284968,0.5071,2496.9,2496.8,3.2668]
[1725219287266,0.00600853,2497.1,2496.8,9.2668]
[1725219287484,12.9642,2497.9,2497.8,0.40037]
[1725219287686,0.40021,2498.8,2498.0,0.40032]
[1725219287986,3.187,2498.8,2498.5,2.77]
[1725219291381,3.92679554,2498.9,2498.5,2.77]
[1725219291589,3.7277,2498.9,2498.5,2.77]
[1725219292575,3.187,2498.9,2498.5,2.77]
[1725219292885,3.187,2498.9,2498.5,5.9778]
[1725219294785,3.187,2498.9,2498.7,2.77]
[1725219295194,3.187,2498.9,2498.5,3.7359]
[1725219295687,3.187,2498.9,2498.5,4.13615]
[1725219295991,3.187,2498.9,2498.5,3.7359]
[1725219297486,3.187,2498.9,2498.7,2.77]
[1725219301986,3.187,2498.9,2498.7,6.7716]
[1725219302191,3.187,2498.9,2498.8,3.2078]
[1725219302580,3.187,2498.9,2498.8,7.60961]
[1725219302784,3.7086,2499.3,2498.9,0.40018]
[1725219303093,3.7086,2499.3,2499.2,2.77]
[1725219303292,3.187,2499.3,2499.2,6.7716]
[1725219303486,3.187,2499.3,2499.2,7.17174]
[1725219303689,3.187,2499.3,2499.2,15.48510179]
[1725219304088,3.187,2499.7,2499.3,0.40013]
[1725219304297,3.2078,2500.4,2499.6,2.77]
[1725219304298,3.187,2499.8,2499.6,2.77]
[1725219304631,3.187,2500.1,2499.6,2.77]
[1725219304793,0.40002,2500.0,2499.6,2.77]
[1725219305383,3.187,2500.1,2499.6,2.77]
[1725219305584,0.40002,2500.0,2499.6,2.77]
[1725219307295,0.40002,2500.0,2499.8,2.77]
[1725219308504,3.187,2500.1,2499.8,2.77]
[1725219308505,0.40003,2499.9,2499.8,2.77]
[1725219308794,0.40008,2499.6,2499.5,0.00600853]
[1725219309487,0.92478,2499.6,2499.5,0.00600853]
[1725219309693,4.92558,2499.6,2499.5,0.00600853]
[1725219309898,0.92478,2499.6,2499.5,0.00600853]
[1725219310087,4.92558,2499.6,2499.5,0.00600853]
[1725219310397,0.92478,2499.6,2499.5,0.00600853]
[1725219310598,4.92558,2499.6,2499.5,0.00600853]
[1725219310998,0.40012,2499.4,2499.2,2.77]
[1725219311396,0.40013,2499.3,2499.2,2.77]
[1725219313290,0.40016,2499.1,2499.0,3.21380853]
[1725219313787,0.40016,2499.1,2499.0,0.00600853]
[1725219314994,4.40176,2499.1,2499.0,0.00600853]
[1725219315195,4.93036,2499.1,2499.0,0.00600853]
[1725219315699,0.92876,2499.1,2499.0,0.00600853]
[1725219315998,4.93036,2499.1,2499.0,0.00600853]
[1725219316387,0.92876,2499.1,2499.0,0.00600853]
[1725219316894,4.93036,2499.1,2499.0,0.00600853]
[1725219317692,0.92876,2499.1,2499.0,0.00600853]
[1725219320287,4.93036,2499.1,2499.0,0.00600853]
[1725219320487,4.93036,2499.1,2497.2,2.04572489]
[1725219320488,0.40029,2498.3,2498.2,3.2078]
[1725219320691,3.58729,2498.3,2498.2,3.2078]
[1725219321287,3.58729,2498.3,2498.0,2.77]
[1725219321689,0.4003,2498.2,2498.0,2.77]
[1725219322293,3.187,2498.3,2497.9,0.00600853]
[1725219322489,0.40034,2498.0,2497.9,0.00600853]
[1725219323298,4.40354,2498.0,2497.9,0.00600853]
[1725219324688,0.40042,2497.5,2497.4,2.77]
[1725219324891,0.4004,2497.7,2497.4,2.77]
[1725219325088,0.4004,2497.6,2497.4,2.77]
[1725219325291,0.5326,2497.9,2497.4,2.77]
[1725219325292,0.40042,2497.5,2497.4,2.77]
[1725219325690,0.40041,2497.6,2497.4,2.77]
[1725219326097,5.03170072,2497.8,2497.4,2.77]
[1725219327000,5.43208072,2497.8,2497.4,2.77]
[1725219327599,0.5326,2497.9,2497.6,2.77]
[1725219327794,3.7187,2498.1,2497.6,3.17039]
[1725219327998,3.7187,2498.1,2497.7,0.5089]
[1725219328205,4.11902,2498.1,2497.7,0.5089]
[1725219328706,0.40034,2498.0,2497.7,0.5089]
[1725219328891,0.40036,2497.9,2497.6,2.77]
[1725219330402,0.40034,2498.0,2497.6,2.77]
[1725219332503,0.40035,2497.9,2497.6,2.77]
[1725219332894,0.40034,2498.0,2497.6,2.77]
[1725219333312,3.7187,2498.1,2497.6,6.7732]
[1725219333313,3.187,2498.1,2497.6,6.7732]
[1725219333492,3.187,2498.1,2497.7,8.29483763]
[1725219333699,3.187,2498.1,2497.7,8.69521763]
[1725219335105,3.187,2498.1,2497.7,8.29483763]
[1725219335106,3.58732,2498.1,2497.7,8.29483763]
[1725219335599,0.40034,2498.0,2497.7,8.29483763]
[1725219335999,3.58733,2498.1,2497.7,12.29803763]
[1725219336199,3.58733,2498.1,2497.7,8.29483763]
[1725219336898,0.40036,2497.9,2497.6,2.77]
[1725219337100,0.5053,2497.8,2497.6,2.77]
[1725219337603,0.5053,2497.8,2497.6,6.774]
[1725219337799,0.5053,2497.8,2497.5,3.2078]
[1725219338000,0.5053,2497.8,2497.4,5.2302]
[1725219338001,0.40042,2497.5,2497.4,4.19]
[1725219338203,0.40043,2497.5,2497.2,3.21380853]
[1725219338409,0.40043,2497.4,2497.2,3.21380853]
[1725219338610,1.0248,2497.7,2497.2,3.21380853]
[1725219338813,0.40043,2497.5,2497.2,3.21380853]
[1725219339202,0.40044,2497.4,2497.2,3.21380853]
[1725219339506,0.4849,2497.3,2497.2,3.21380853]
[1725219339903,0.88535,2497.3,2497.2,0.00600853]
[1725219340509,0.4849,2497.3,2497.2,0.00600853]
[1725219341201,0.88535,2497.3,2497.2,0.00600853]
[1725219341607,4.89015,2497.3,2497.2,0.00600853]
[1725219341807,0.40051,2496.9,2496.8,3.2078]
[1725219342001,0.4005,2497.0,2496.8,3.2078]
[1725219342319,0.40049,2497.1,2496.8,3.2078]
[1725219342501,0.596559,2497.1,2496.8,3.2078]
[1725219342808,0.5227,2497.2,2496.8,3.2078]
[1725219343301,0.72089148,2497.2,2496.8,3.2078]
[1725219343501,0.40049,2497.1,2496.8,3.2078]
[1725219344304,0.72089148,2497.2,2496.8,3.2078]
[1725219344305,0.4005,2497.0,2496.8,3.2078]
[1725219344615,4.81772746,2497.1,2496.8,3.2078]
[1725219344907,0.40051,2497.0,2496.8,3.2078]
[1725219345107,0.92861,2497.0,2496.8,3.2078]
[1725219346306,0.5281,2497.0,2496.8,3.2078]
[1725219346508,0.9286,2497.0,2496.8,3.2078]
[1725219348811,0.40051,2496.9,2496.8,3.2078]
[1725219349416,4.40531,2496.9,2496.8,3.2078]
[1725219350106,0.5281,2497.0,2496.8,3.2078]
[1725219350314,0.9286,2497.0,2496.8,3.2078]
[1725219351218,0.5281,2497.0,2496.8,3.2078]
[1725219351410,0.5227,2497.2,2496.9,2.77]
[1725219351608,0.4849,2497.3,2496.9,2.77]
[1725219351816,0.4849,2497.3,2496.8,4.66383]
[1725219351817,0.4849,2497.3,2496.8,4.2633]
[1725219352015,0.40048,2497.1,2496.8,3.2078]
[1725219352517,0.4005,2497.0,2496.8,3.2078]
[1725219352706,0.911,2497.0,2496.8,3.2078]
[1725219353413,0.5105,2497.0,2496.8,3.2078]
[1725219353618,0.40047,2497.2,2496.8,3.2078]
[1725219354618,1.39586,2497.3,2496.8,3.2078]
[1725219354817,1.39586,2497.3,2496.8,3.7263]
[1725219356928,0.40049,2497.1,2496.8,3.2078]
[1725219358136,0.60464237,2497.2,2496.8,3.2078]
[1725219359137,0.40048,2497.1,2496.8,3.2078]
[1725219360038,0.40048,2497.1,2496.7,0.00600853]
[1725219360237,0.4005,2497.0,2496.7,3.21380853]
[1725219360540,0.40049,2497.1,2496.7,7.21860853]
[1725219360731,1.39586,2497.3,2496.7,3.21380853]
[1725219360941,0.9954,2497.3,2496.9,0.4005]
[1725219361138,3.187,2497.5,2497.1,0.40048]
[1725219361327,4.707,2497.8,2497.2,0.5158]
[1725219361534,0.40038,2497.7,2497.2,9.15921147]
[1725219361856,3.6766,2497.8,2497.3,3.2078]
[1725219362137,3.6766,2497.8,2497.4,8.26058795]
[1725219362338,3.6766,2497.8,2497.5,0.5114]
[1725219364136,3.187,2497.8,2497.5,0.91181]
[1725219364444,0.40042,2497.5,2496.9,4.21509489]
[1725219364745,0.4935,2497.4,2497.3,8.54275027]
[1725219365136,0.4935,2497.4,2497.0,0.5218]
[1725219365640,0.4935,2497.4,2497.2,8.55145177]
[1725219365941,0.4935,2497.4,2497.0,0.5218]
[1725219366243,0.4935,2497.4,2497.3,8.23200674]
[1725219366643,0.4935,2497.4,2497.0,0.5218]
[1725219366845,0.4935,2497.4,2497.0,0.9223]
[1725219367030,0.4935,2497.4,2497.2,8.23200674]
[1725219367344,0.4935,2497.4,2497.0,0.9223]
[1725219367543,0.4935,2497.4,2497.0,0.5218]
[1725219367737,0.89394,2497.4,2497.1,8.31267557]
[1725219368437,0.4935,2497.4,2497.1,8.31267557]
[1725219368637,0.89393,2497.4,2497.1,8.31267557]
[1725219370748,0.4935,2497.4,2496.9,0.5329]
[1725219370941,0.4935,2497.4,2496.8,7.3978]
[1725219371142,4.508724,2497.3,2496.8,3.2078]
[1725219371348,0.4005,2497.0,2496.8,3.2078]
[1725219372048,0.40049,2497.1,2496.8,3.2078]
[1725219372247,0.40047,2497.2,2496.8,3.2078]
[1725219372544,3.187,2497.4,2496.8,5.9778]
[1725219372747,3.187,2497.4,2496.9,1.0534]
[1725219372748,3.58743,2497.4,2496.9,1.0534]
[1725219373151,3.58743,2497.4,2497.0,0.6457]
[1725219373451,3.58743,2497.4,2497.0,1.0462]
[1725219373452,3.187,2497.4,2497.0,1.0462]
[1725219373942,3.58743,2497.4,2497.0,1.0462]
[1725219374135,3.187,2497.4,2497.0,1.0462]
[1725219374338,3.58743,2497.4,2497.0,0.6457]
[1725219374540,0.40045,2497.3,2497.0,0.6457]
[1725219374744,3.58744,2497.4,2497.0,1.04619]
[1725219377444,0.40047,2497.2,2496.9,3.2078]
[1725219377643,0.40049,2497.1,2496.9,3.2078]
[1725219377845,0.40047,2497.2,2496.9,3.2078]
[1725219378549,1.05226,2497.3,2496.9,3.2078]
[1725219379053,1.05226,2497.3,2496.9,3.60831]
[1725219379550,0.40046,2497.2,2496.9,3.2078]
[1725219379953,1.01766,2497.2,2496.9,3.2078]
[1725219381254,1.01766,2497.2,2496.9,4.25239489]
[1725219381654,1.01766,2497.2,2496.8,4.65292489]
[1725219381846,1.01766,2497.2,2496.9,1.04459489]
[1725219382155,0.4005,2497.0,2496.9,1.04459489]
[1725219382343,0.40051,2496.9,2496.8,3.2078]
[1725219382950,4.40531,2496.9,2496.8,3.2078]
[1725219383153,4.0048,2496.9,2496.8,3.2078]
[1725219383456,0.4005,2497.0,2496.8,3.2078]
[1725219385063,0.6429,2497.1,2496.8,3.2078]
[1725219385364,0.6429,2497.1,2496.7,0.62880853]
[1725219385746,0.6429,2497.1,2496.7,1.67340342]
[1725219386458,1.04338,2497.1,2496.7,1.67340342]
[1725219387353,0.6429,2497.1,2496.7,2.07394342]
[1725219387644,1.04339,2497.1,2496.7,1.67340342]
[1725219388456,1.04339,2497.1,2496.7,1.05060342]
[1725219388457,0.4005,2497.0,2496.7,1.05060342]
[1725219388653,1.04339,2497.1,2496.7,1.05060342]
[1725219389251,0.4005,2497.0,2496.7,0.00600853]
[1725219389859,1.04339,2497.1,2496.7,0.40654853]
[1725219390357,1.04339,2497.1,2496.7,0.00600853]
[1725219391064,0.4005,2497.0,2496.7,0.00600853]
[1725219391651,1.04339,2497.1,2496.7,0.00600853]
[1725219392560,0.4005,2497.0,2496.7,0.00600853]
[1725219393549,1.04339,2497.1,2496.7,0.40654853]
[1725219393754,3.187,2497.2,2496.8,11.82295744]
[1725219393956,3.836,2497.2,2496.8,13.07275744]
[1725219394154,3.187,2497.2,2497.1,0.40048]
[1725219394558,3.187,2497.2,2497.0,0.40049]
[1725219395566,3.187,2497.2,2496.9,0.4005]
[1725219395961,3.58747,2497.2,2496.9,0.4005]
[1725219396171,3.187,2497.3,2497.2,0.40046]
[1725219396466,3.187,2497.3,2497.2,12.58718667]
[1725219396761,3.187,2497.3,2497.2,13.21358667]
[1725219399768,3.187,2497.3,2497.2,12.18672667]
[1725219401060,3.58745,2497.3,2497.2,8.18192667]
[1725219402457,3.187,2497.3,2497.2,8.18192667]
[1725219402966,3.187,2497.3,2497.2,18.58718667]
[1725219403165,3.187,2497.3,2497.2,20.16038156]
[1725219403769,3.187,2497.3,2497.2,20.63748156]
[1725219404970,3.187,2497.3,2497.2,23.84528156]
[1725219405361,3.187,2497.3,2497.2,16.43912156]
[1725219405561,3.187,2497.3,2497.2,15.39452667]
[1725219406975,3.58745,2497.3,2497.2,11.38972667]
[1725219407168,3.187,2497.3,2497.2,11.38972667]
[1725219407470,5.24764,2497.4,2497.2,11.38972667]
[1725219409766,4.8472,2497.4,2497.2,11.38972667]
[1725219410482,4.8472,2497.4,2497.2,8.18192667]
[1725219410665,4.8472,2497.4,2497.2,11.38972667]
[1725219410966,5.24763,2497.4,2497.2,11.38972667]
[1725219411978,3.187,2497.4,2497.2,11.79017667]
[1725219413271,0.40041,2497.6,2497.2,11.79017667]
[1725219413272,3.58741,2497.6,2497.2,11.79017667]
[1725219415081,0.40042,2497.5,2497.2,11.38972667]
[1725219415876,0.40042,2497.5,2497.2,8.18192667]
[1725219416076,3.58741,2497.6,2497.2,11.38972667]
[1725219416276,3.58741,2497.6,2497.2,11.79018667]
[1725219417475,3.187,2497.6,2497.4,0.40042]
[1725219417980,3.187,2497.6,2497.3,0.40044]
[1725219419183,5.26988,2497.7,2497.3,0.40044]
[1725219419972,5.26988,2497.7,2497.2,11.79018667]
[1725219419973,0.40041,2497.6,2497.2,11.79018667]
[1725219420174,4.8695,2497.7,2497.2,11.79018667]
[1725219420988,0.4004,2497.6,2497.2,11.79018667]
[1725219421276,4.8695,2497.7,2497.2,11.79018667]
[1725219421277,5.26989,2497.7,2497.2,11.79018667]
[1725219421580,4.8695,2497.7,2497.5,3.2078]
[1725219421781,3.187,2497.7,2497.6,0.4004]
[1725219421972,3.187,2497.7,2497.6,7.1744]
[1725219425187,0.5698,2498.0,2497.6,10.3822]
[1725219425188,3.187,2497.9,2497.6,10.3822]
[1725219425490,3.187,2497.9,2497.7,0.40038]
[1725219425690,3.7568,2498.0,2497.8,0.40036]
[1725219426597,3.7568,2498.0,2497.7,0.40037]
[1725219431396,4.15714,2498.0,2497.6,6.37819]
[1725219431797,0.40043,2497.4,2497.2,8.44239489]
[1725219431993,1.2305,2497.3,2497.2,3.2078]
[1725219432305,1.8257,2497.3,2497.2,3.2078]
[1725219432500,2.22615,2497.3,2497.2,3.2078]
[1725219432803,0.40047,2497.2,2496.9,1.15]
[1725219433196,0.40047,2497.2,2497.0,8.6357593]
[1725219433898,2.22615,2497.3,2497.0,8.6357593]
[1725219435810,1.8257,2497.3,2496.8,14.2578]
[1725219436206,0.40048,2497.1,2496.8,14.2578]
[1725219436706,0.40047,2497.2,2496.8,14.2578]
[1725219437010,0.40047,2497.2,2496.8,3.2078]
[1725219439000,0.40048,2497.1,2496.8,3.2078]
[1725219439512,0.40047,2497.2,2496.8,3.2078]
[1725219440612,1.8257,2497.3,2496.8,3.2078]
[1725219440613,0.40048,2497.1,2496.8,3.2078]
[1725219442414,0.40051,2496.9,2496.8,3.2078]
[1725219442601,3.58751,2496.9,2496.8,3.2078]
[1725219443216,3.187,2496.9,2496.8,3.2078]
[1725219444022,3.187,2496.9,2496.7,2.77600853]
[1725219444201,1.2641,2496.8,2496.7,2.77600853]
[1725219448323,5.67023,2496.8,2496.7,0.00600853]
[1725219448513,5.67023,2496.8,2496.0,14.6586]
[1725219448514,0.4006,2496.4,2496.0,16.56789489]
[1725219448720,1.847,2496.3,2496.0,4.87395]
[1725219449028,1.847,2496.3,2496.0,7.64395]
[1725219451220,1.847,2496.3,2496.1,0.40064]
[1725219451923,1.847,2496.3,2496.1,3.60844]
[1725219452123,3.19300853,2496.4,2496.2,12.3837545]
[1725219452321,3.19300853,2496.4,2496.3,2.77]
[1725219452625,3.19300853,2496.4,2496.3,15.49205108]
[1725219454121,3.19300853,2496.4,2496.3,18.69985108]
[1725219458028,3.19300853,2496.4,2496.3,17.07985108]
[1725219458532,3.19300853,2496.4,2496.3,13.87205108]
[1725219458733,3.19300853,2496.4,2496.3,17.07985108]
[1725219459133,3.19300853,2496.4,2496.3,13.87205108]
[1725219459332,3.19300853,2496.4,2496.3,17.07985108]
[1725219460224,3.19300853,2496.4,2496.3,13.87205108]
[1725219461132,3.19300853,2496.4,2496.3,17.07985108]
[1725219465231,3.19300853,2496.4,2496.3,23.07985108]
[1725219465438,2.592137,2496.4,2496.3,23.07985108]
[1725219469137,2.592137,2496.4,2496.3,17.07985108]
[1725219469739,1.991137,2496.4,2496.3,17.07985108]
[1725219470433,1.991137,2496.4,2496.3,18.12444597]
[1725219472236,1.991137,2496.4,2496.3,17.07985108]
[1725219472447,1.991137,2496.4,2496.3,18.12444597]
[1725219474346,1.991137,2496.4,2496.3,20.52807409]
[1725219475354,1.991137,2496.4,2496.3,21.05381523]
[1725219475747,1.991137,2496.4,2496.3,17.84601523]
[1725219476249,1.991137,2496.4,2496.3,21.05381523]
[1725219476646,1.991137,2496.4,2496.3,17.84601523]
[1725219476845,1.991137,2496.4,2496.3,21.05381523]
[1725219477344,1.991137,2496.4,2496.3,21.57711924]
[1725219478949,1.991137,2496.4,2496.3,21.57711363]
[1725219480653,1.991137,2496.4,2496.3,18.36931363]
[1725219480951,1.991137,2496.4,2496.3,21.57711363]
[1725219481548,1.991137,2496.4,2496.3,18.36931363]
[1725219481757,1.991137,2496.4,2496.3,21.57711363]
[1725219482349,1.991137,2496.4,2496.3,21.57709438]
[1725219483860,1.991137,2496.4,2496.3,18.36929438]
[1725219484247,1.1874,2497.0,2496.3,22.17801438]
[1725219484557,1.1874,2497.0,2496.9,0.40051]
[1725219484759,2.1914,2497.0,2496.9,0.40051]
[1725219484949,6.1962,2497.0,2496.9,0.40051]
[1725219485858,2.1914,2497.0,2496.9,0.40051]
[1725219488450,6.1962,2497.0,2496.8,3.2078]
[1725219488655,2.1914,2497.0,2496.8,3.2078]
[1725219489057,2.5919,2497.0,2496.8,3.2078]
[1725219489464,3.3414,2497.0,2496.5,4.25346493]
[1725219489652,3.3414,2497.0,2496.3,2.61416232]
[1725219489653,0.40057,2496.6,2496.3,2.61416232]
[1725219489961,1.8321,2496.5,2496.1,8.94843]
[1725219490346,1.8321,2496.5,2496.2,8.52389868]
[1725219490952,0.40059,2496.4,2496.2,8.52389868]
[1725219491149,1.8321,2496.5,2496.1,7.3978]
[1725219491150,2.23268,2496.5,2496.1,7.3978]
[1725219491347,0.4006,2496.4,2496.1,7.3978]
[1725219492171,1.4046,2496.4,2496.1,3.2078]
[1725219493364,1.004,2496.4,2496.1,4.75844]
[1725219494460,1.004,2496.4,2496.1,4.3578]
[1725219494665,1.004,2496.4,2496.1,4.75844]
[1725219495056,1.004,2496.4,2496.1,4.3578]
[1725219495862,1.004,2496.4,2496.1,3.2078]
[1725219495863,1.40459,2496.4,2496.1,3.2078]
[1725219496066,1.40459,2496.4,2496.2,1.15]
[1725219496372,1.004,2496.4,2496.2,1.15]
[1725219496853,1.4046,2496.4,2496.1,3.2078]
[1725219497054,1.004,2496.4,2496.1,3.2078]
[1725219497257,1.4046,2496.4,2496.1,3.2078]
[1725219497468,5.411,2496.4,2496.1,3.2078]
[1725219498270,1.4046,2496.4,2496.1,3.2078]
[1725219498961,1.4046,2496.4,2496.0,1.55065]
[1725219499157,1.4046,2496.4,2496.0,4.3578]
[1725219499363,1.4046,2496.4,2496.1,8.47539849]
[1725219500068,5.411,2496.4,2496.1,8.47539849]
[1725219500267,0.40061,2496.3,2496.1,8.47539849]
[1725219500772,4.40701,2496.3,2496.1,8.47539849]
[1725219502670,5.41101,2496.3,2496.1,8.47539849]
[1725219503555,0.40062,2496.2,2496.1,8.47539849]
[1725219503963,4.40702,2496.2,2496.1,8.47539849]
[1725219506068,4.40702,2496.2,2496.0,3.2078]
[1725219506069,0.40064,2496.1,2496.0,3.2078]
[1725219506269,2.02754,2496.1,2496.0,3.2078]
[1725219506959,2.02754,2496.1,2495.9,0.00600853]
[1725219507273,2.02754,2496.1,2495.9,1.15600853]
[1725219507274,1.241,2496.0,2495.9,1.15600853]
[1725219510571,0.6,2496.0,2495.9,1.15600853]
[1725219511465,1.604,2496.0,2495.9,1.15600853]
[1725219513077,1.004,2496.0,2495.9,1.55667853]
[1725219513373,1.004,2496.0,2495.9,2.18777853]
[1725219514975,1.004,2496.0,2495.9,1.78710853]
[1725219516169,1.004,2496.0,2495.9,4.99490853]
[1725219516581,1.004,2496.0,2495.9,1.78710853]
[1725219516876,1.004,2496.0,2495.9,4.99490853]
[1725219517772,1.004,2496.0,2495.9,1.78710853]
[1725219518173,1.004,2496.0,2495.9,4.99490853]
[1725219519472,1.004,2496.0,2495.9,1.78710853]
[1725219519772,1.004,2496.0,2495.9,5.39557853]
[1725219521086,1.004,2496.0,2495.9,2.18777853]
[1725219521272,1.004,2496.0,2495.9,5.39557853]
[1725219522173,1.004,2496.0,2495.9,9.40197853]
[1725219522572,1.004,2496.0,2495.9,5.39557853]
[1725219522975,1.004,2496.0,2495.9,4.36380853]
[1725219523280,1.004,2496.0,2495.9,3.21380853]
[1725219523476,1.6348,2496.0,2495.9,3.21380853]
[1725219524176,7.19186,2496.0,2495.9,0.00600853]
[1725219524374,7.19186,2496.0,2495.5,3.2078]
[1725219524375,0.40071,2495.7,2495.5,3.2078]
[1725219524571,2.2629,2495.6,2495.5,3.2078]
[1725219524973,6.67082,2495.6,2495.5,3.2078]
[1725219525173,6.67082,2495.6,2495.1,6.4333]
[1725219525174,13.4201,2495.6,2495.1,3.2078]
[1725219525380,0.40077,2495.3,2495.1,3.21380853]
[1725219525681,0.6016,2495.2,2495.1,3.21380853]
[1725219525982,1.6056,2495.2,2495.1,3.21380853]
[1725219526881,1.6056,2495.2,2495.1,0.00600853]
[1725219531272,2.00638,2495.2,2495.1,0.00600853]
[1725219532688,6.01438,2495.2,2495.1,0.00600853]
[1725219541184,0.99799147,2495.1,2495.0,3.2078]
[1725219541387,1.64639147,2495.1,2495.0,3.2078]
[1725219542882,0.99799147,2495.1,2495.0,3.2078]
[1725219543078,0.99799147,2495.1,2495.0,7.61662]
[1725219543284,0.99799147,2495.1,2495.0,4.82752]
[1725219544598,0.99799147,2495.1,2495.0,3.2078]
[1725219544893,5.40679147,2495.1,2495.0,3.2078]
[1725219545689,5.00599147,2495.1,2495.0,3.2078]
[1725219545895,0.99799147,2495.1,2495.0,3.2078]
[1725219546588,5.00599147,2495.1,2495.0,3.2078]
[1725219547092,4.4088,2495.1,2495.0,2.21580853]
[1725219549996,1.15,2495.3,2495.0,2.21580853]
[1725219550294,0.4008,2495.1,2495.0,2.21580853]
[1725219550687,4.4088,2495.1,2495.0,2.21580853]
[1725219552796,4.4088,2495.1,2494.8,0.00400569]
[1725219552797,0.40083,2494.9,2494.8,0.00400569]
[1725219553094,1.55083,2494.9,2494.8,0.00400569]
[1725219553285,5.55883,2494.9,2494.8,0.00400569]
[1725219554796,16.11677218,2494.9,2494.8,0.00400569]
[1725219557202,4.40883,2494.9,2494.8,0.00400569]
[1725219557399,0.40083,2494.9,2494.8,0.00400569]
[1725219557702,5.55883,2494.9,2494.8,0.00400569]
[1725219561502,0.40083,2494.9,2494.8,0.00400569]
[1725219564600,2.3418,2495.0,2494.8,0.00400569]
[1725219565006,0.40083,2494.9,2494.8,0.00400569]
[1725219566610,0.814,2495.0,2494.8,0.00400569]
[1725219566915,0.79859,2495.2,2494.8,0.40484569]
[1725219567214,0.3871,2495.1,2494.8,0.00400569]
[1725219567411,1.55083,2494.9,2494.8,0.00400569]
[1725219568201,5.55883,2494.9,2494.8,0.00400569]
[1725219578208,6.56092,2494.9,2494.8,0.00400569]
[1725219579119,20.02401199,2494.9,2494.8,0.00400569]
[1725219583023,16.81621199,2494.9,2494.8,0.00400569]
[1725219583215,20.02401199,2494.9,2494.8,0.00400569]
[1725219584115,14.02401199,2494.9,2494.8,0.00400569]
[1725219584711,20.02401199,2494.9,2494.8,0.00400569]
[1725219585024,20.02401199,2494.9,2494.2,0.40094]
[1725219585025,0.40091,2494.5,2494.2,0.40094]
[1725219585223,0.7623,2494.4,2494.2,0.40094]
[1725219586514,1.16322,2494.4,2494.1,3.96965]
[1725219586716,1.55095,2494.2,2494.1,0.3609]
[1725219586910,0.40096,2494.1,2493.8,4.591]
[1725219587112,4.3578,2494.2,2493.8,4.591]
[1725219587113,1.55695853,2494.2,2493.9,0.3736]
[1725219587416,1.55695853,2494.2,2493.9,0.77459]
[1725219588017,1.55695853,2494.2,2493.9,0.3736]
[1725219588725,0.40096,2494.1,2493.9,0.3736]
[1725219589842,0.7381,2494.0,2493.9,0.3736]
[1725219590346,0.7381,2494.0,2493.9,4.3832]
[1725219592544,0.40695853,2494.2,2493.9,4.3832]
[1725219592731,0.00600853,2494.2,2493.9,0.77458]
[1725219593132,0.00600853,2494.2,2494.0,0.40097]
[1725219593635,0.00600853,2494.2,2493.9,0.77458]
[1725219593942,0.00600853,2494.2,2494.0,0.40098]
[1725219596333,0.00600853,2494.2,2493.9,0.3736]
[1725219596542,0.00600853,2494.2,2493.9,0.77459]
[1725219596738,0.40695853,2494.2,2493.9,0.3736]
[1725219598146,0.40097,2494.1,2493.9,0.3736]
[1725219598340,0.40098,2494.0,2493.7,3.2078]
[1725219598642,1.15,2493.9,2493.7,3.2078]
[1725219598944,1.5374,2493.9,2493.7,3.2078]
[1725219599445,0.3523,2494.0,2493.8,0.40101]
[1725219599644,0.3523,2494.0,2493.7,0.40101]
[1725219599951,0.75328,2494.0,2493.7,0.40101]
[1725219601044,0.3523,2494.0,2493.7,0.40101]
[1725219601741,0.3523,2494.0,2493.8,0.40101]
[1725219601947,0.75328,2494.0,2493.7,0.40102]
[1725219604445,0.3523,2494.0,2493.8,0.40101]
[1725219604644,0.3523,2494.0,2493.7,0.40102]
[1725219605343,0.3523,2494.0,2493.8,0.229]
[1725219605745,0.75328,2494.0,2493.8,0.229]
[1725219605945,0.75328,2494.0,2493.7,0.40103]